[Event "*** Titled Tuesday Blitz"]
[Site "Chess.com"]
[Date "2021.03.02"]
[Round "1"]
[White "ludogoretz"]
[Black "Stouuf"]
[Result "0-1"]
[WhiteElo "2318"]
[BlackElo "2623"]
[TimeControl "180+1"]
[EndTime "10:09:03 PST"]
[Termination "Stouuf won by checkmate"]

1. d4 {[%clk 0:03:00.9]} 1... Nf6 {[%clk 0:02:55.7]} 2. Bf4 {[%clk 0:03:01]}
2... g6 {[%clk 0:02:54.8]} 3. e3 {[%clk 0:03:01.6]} 3... Bg7 {[%clk 0:02:51.5]}
4. Nf3 {[%clk 0:03:02]} 4... O-O {[%clk 0:02:51.3]} 5. Bd3 {[%clk 0:03:02.3]}
5... c5 {[%clk 0:02:51.4]} 6. c3 {[%clk 0:03:02.2]} 6... d6 {[%clk 0:02:51.2]}
7. h3 {[%clk 0:03:01.9]} 7... cxd4 {[%clk 0:02:46.1]} 8. exd4 {[%clk 0:03:01.7]}
8... Nc6 {[%clk 0:02:45.9]} 9. O-O {[%clk 0:03:01.5]} 9... Qb6 {[%clk
0:02:43.8]} 10. Qe2 {[%clk 0:02:59.1]} 10... Re8 {[%clk 0:02:25.7]} 11. Na3
{[%clk 0:02:56.1]} 11... Be6 {[%clk 0:02:04.8]} 12. Rfe1 {[%clk 0:02:43.6]}
12... Bd5 {[%clk 0:02:03.1]} 13. Be3 {[%clk 0:02:28.5]} 13... a6 {[%clk
0:01:37.1]} 14. Bc4 {[%clk 0:02:28.6]} 14... Rac8 {[%clk 0:01:30.4]} 15. Bg5
{[%clk 0:02:26.2]} 15... Bxc4 {[%clk 0:01:25]} 16. Nxc4 {[%clk 0:02:27.1]} 16...
Qc7 {[%clk 0:01:25.3]} 17. Ne3 {[%clk 0:02:21.9]} 17... e6 {[%clk 0:01:12.9]}
18. Qd3 {[%clk 0:02:14.8]} 18... d5 {[%clk 0:01:11.2]} 19. Bxf6 {[%clk
0:02:11.7]} 19... Bxf6 {[%clk 0:01:11.2]} 20. Ng4 {[%clk 0:02:12.6]} 20... Bg7
{[%clk 0:01:10.7]} 21. Nge5 {[%clk 0:02:00.7]} 21... Nxe5 {[%clk 0:01:10.7]} 22.
Nxe5 {[%clk 0:02:00.5]} 22... b5 {[%clk 0:01:11.1]} 23. a3 {[%clk 0:01:56.9]}
23... Rb8 {[%clk 0:01:09.5]} 24. Re3 {[%clk 0:01:54.2]} 24... a5 {[%clk
0:01:06.8]} 25. Rae1 {[%clk 0:01:53.9]} 25... b4 {[%clk 0:01:04.7]} 26. axb4
{[%clk 0:01:54.8]} 26... axb4 {[%clk 0:01:05.6]} 27. Rf3 {[%clk 0:01:52.6]}
27... Bxe5 {[%clk 0:01:04.3]} 28. Rxe5 {[%clk 0:01:41.8]} 28... bxc3 {[%clk
0:01:04.2]} 29. bxc3 {[%clk 0:01:42.7]} 29... Rec8 {[%clk 0:01:03.9]} 30. h4
{[%clk 0:01:22.7]} 30... Rb3 {[%clk 0:01:01.2]} 31. Ree3 {[%clk 0:01:21.1]}
31... Qc4 {[%clk 0:00:56.9]} 32. Qd2 {[%clk 0:01:09.2]} 32... Rb1+ {[%clk
0:00:50.2]} 33. Re1 {[%clk 0:01:09.4]} 33... Rcb8 {[%clk 0:00:45.7]} 34. g3
{[%clk 0:01:07.7]} 34... R8b2 {[%clk 0:00:42.1]} 35. Qe3 {[%clk 0:01:00.1]}
35... Qb3 {[%clk 0:00:22.8]} 36. Kg2 {[%clk 0:00:58.2]} 36... Qc2 {[%clk
0:00:19.8]} 37. Rxb1 {[%clk 0:00:53]} 37... Rxb1 {[%clk 0:00:20.7]} 38. Qf4
{[%clk 0:00:52.5]} 38... Qf5 {[%clk 0:00:14.9]} 39. Qc7 {[%clk 0:00:34.8]} 39...
Rg1+ {[%clk 0:00:14.5]} 40. Kxg1 {[%clk 0:00:35.3]} 40... Qxf3 {[%clk
0:00:15.4]} 41. Qb8+ {[%clk 0:00:35.3]} 41... Kg7 {[%clk 0:00:15.5]} 42. Qb2
{[%clk 0:00:36.2]} 42... Qe4 {[%clk 0:00:13.8]} 43. Qd2 {[%clk 0:00:36]} 43...
h6 {[%clk 0:00:13.4]} 44. Kh2 {[%clk 0:00:35.4]} 44... Qf5 {[%clk 0:00:12.7]}
45. Qe3 {[%clk 0:00:35.3]} 45... g5 {[%clk 0:00:10.7]} 46. hxg5 {[%clk
0:00:34.8]} 46... hxg5 {[%clk 0:00:11.6]} 47. Kg2 {[%clk 0:00:35.7]} 47... Kg6
{[%clk 0:00:11.4]} 48. Qd2 {[%clk 0:00:34]} 48... f6 {[%clk 0:00:09.5]} 49. f3
{[%clk 0:00:34.4]} 49... g4 {[%clk 0:00:06.5]} 50. f4 {[%clk 0:00:33.6]} 50...
Qe4+ {[%clk 0:00:06.4]} 51. Kh2 {[%clk 0:00:33]} 51... Kf5 {[%clk 0:00:06]} 52.
Qf2 {[%clk 0:00:30.7]} 52... Qd3 {[%clk 0:00:05.6]} 53. Qe1 {[%clk 0:00:29.5]}
53... Qe4 {[%clk 0:00:03.7]} 54. Qf2 {[%clk 0:00:28.7]} 54... Qb1 {[%clk
0:00:03.1]} 55. Kg2 {[%clk 0:00:27.2]} 55... Qd3 {[%clk 0:00:03.1]} 56. Kh2
{[%clk 0:00:26.6]} 56... Qxc3 {[%clk 0:00:03.4]} 57. Kg2 {[%clk 0:00:25.5]}
57... Qd3 {[%clk 0:00:03.7]} 58. Kh2 {[%clk 0:00:25.5]} 58... Qe4 {[%clk
0:00:03.7]} 59. Qd2 {[%clk 0:00:25.9]} 59... e5 {[%clk 0:00:02.9]} 60. dxe5
{[%clk 0:00:25.8]} 60... fxe5 {[%clk 0:00:03.6]} 61. fxe5 {[%clk 0:00:26.2]}
61... Kxe5 {[%clk 0:00:04.5]} 62. Qg5+ {[%clk 0:00:25.9]} 62... Kd4 {[%clk
0:00:05.2]} 63. Qf6+ {[%clk 0:00:24.8]} 63... Kd3 {[%clk 0:00:05.4]} 64. Qa6+
{[%clk 0:00:23.2]} 64... Ke3 {[%clk 0:00:05.3]} 65. Qa3+ {[%clk 0:00:22.2]}
65... Qd3 {[%clk 0:00:04.7]} 66. Qc5+ {[%clk 0:00:21.6]} 66... Ke2 {[%clk
0:00:04]} 67. Qe7+ {[%clk 0:00:21]} 67... Qe3 {[%clk 0:00:03.2]} 68. Qd6 {[%clk
0:00:10.3]} 68... d4 {[%clk 0:00:02.3]} 69. Qa6+ {[%clk 0:00:09.9]} 69... d3
{[%clk 0:00:02.2]} 70. Qa2+ {[%clk 0:00:10.5]} 70... d2 {[%clk 0:00:02.5]} 71.
Qc4+ {[%clk 0:00:11.2]} 71... Kf2 {[%clk 0:00:02.4]} 72. Qf7+ {[%clk 0:00:10.6]}
72... Qf3 {[%clk 0:00:01.8]} 73. Qa7+ {[%clk 0:00:11.2]} 73... Ke1 {[%clk
0:00:01.2]} 74. Qa5 {[%clk 0:00:10.5]} 74... Ke2 {[%clk 0:00:02.1]} 75. Qb5+
{[%clk 0:00:10.3]} 75... Kf2 {[%clk 0:00:02.8]} 76. Qf1+ {[%clk 0:00:08.2]}
76... Ke3 {[%clk 0:00:02.1]} 77. Qg1+ {[%clk 0:00:07.6]} 77... Qf2+ {[%clk
0:00:02.2]} 78. Qxf2+ {[%clk 0:00:08.2]} 78... Kxf2 {[%clk 0:00:03.1]} 79. Kh1
{[%clk 0:00:09.1]} 79... d1=Q+ {[%clk 0:00:03.8]} 80. Kh2 {[%clk 0:00:10]} 80...
Qg1# {[%clk 0:00:04.7]} 0-1

[Event "*** Titled Tuesday Blitz"]
[Site "Chess.com"]
[Date "2021.03.02"]
[Round "1"]
[White "frankshar"]
[Black "Skillcam"]
[Result "1-0"]
[WhiteElo "2326"]
[BlackElo "2592"]
[TimeControl "180+1"]
[EndTime "10:09:04 PST"]
[Termination "frankshar won by resignation"]

1. d4 {[%clk 0:03:00.9]} 1... Nf6 {[%clk 0:03:00]} 2. c4 {[%clk 0:03:00.7]} 2...
e6 {[%clk 0:03:00.6]} 3. Nf3 {[%clk 0:03:01]} 3... d5 {[%clk 0:02:59.1]} 4. Nc3
{[%clk 0:03:00.6]} 4... a6 {[%clk 0:02:59]} 5. cxd5 {[%clk 0:02:56.5]} 5... exd5
{[%clk 0:02:58.7]} 6. Bf4 {[%clk 0:02:56.2]} 6... Be6 {[%clk 0:02:59.3]} 7. e3
{[%clk 0:02:56.1]} 7... Bd6 {[%clk 0:02:59.9]} 8. Bxd6 {[%clk 0:02:51]} 8...
Qxd6 {[%clk 0:03:00.8]} 9. Bd3 {[%clk 0:02:51.3]} 9... Nbd7 {[%clk 0:03:00.8]}
10. O-O {[%clk 0:02:51.3]} 10... O-O {[%clk 0:03:00.4]} 11. Qe2 {[%clk
0:02:46.5]} 11... h6 {[%clk 0:02:58.8]} 12. Rfc1 {[%clk 0:02:46.5]} 12... c5
{[%clk 0:02:58.4]} 13. dxc5 {[%clk 0:02:46.2]} 13... Nxc5 {[%clk 0:02:59.3]} 14.
Nd4 {[%clk 0:02:45.7]} 14... Bg4 {[%clk 0:02:55.4]} 15. Qf1 {[%clk 0:02:40.4]}
15... Rfe8 {[%clk 0:02:52.4]} 16. h3 {[%clk 0:02:38.6]} 16... Bd7 {[%clk
0:02:50.9]} 17. Rd1 {[%clk 0:02:35]} 17... b5 {[%clk 0:02:32.9]} 18. a3 {[%clk
0:02:31.5]} 18... Rac8 {[%clk 0:02:29.7]} 19. Rac1 {[%clk 0:02:31.4]} 19... Qe5
{[%clk 0:02:26.3]} 20. Bb1 {[%clk 0:02:23.8]} 20... Qg5 {[%clk 0:02:13.8]} 21.
Kh1 {[%clk 0:02:16.8]} 21... Qh5 {[%clk 0:02:06.2]} 22. Qe2 {[%clk 0:02:10.6]}
22... Bg4 {[%clk 0:02:02.2]} 23. f3 {[%clk 0:02:06.6]} 23... Bd7 {[%clk
0:02:01.8]} 24. b4 {[%clk 0:01:59.6]} 24... Ne6 {[%clk 0:01:43.2]} 25. Nxe6
{[%clk 0:01:54.3]} 25... Bxe6 {[%clk 0:01:44.1]} 26. Kg1 {[%clk 0:01:38.1]}
26... Rc4 {[%clk 0:01:36.2]} 27. Ba2 {[%clk 0:01:27]} 27... Rc7 {[%clk
0:01:31.1]} 28. Qd2 {[%clk 0:01:05.5]} 28... Rec8 {[%clk 0:01:22.3]} 29. Ne2
{[%clk 0:01:04.8]} 29... Bxh3 {[%clk 0:01:05.2]} 30. Rxc7 {[%clk 0:00:59.5]}
30... Rxc7 {[%clk 0:01:02.6]} 31. Nf4 {[%clk 0:00:51.7]} 31... Qf5 {[%clk
0:00:53.3]} 32. Bb1 {[%clk 0:00:51.7]} 32... Qe5 {[%clk 0:00:43.1]} 33. Nxh3
{[%clk 0:00:49.9]} 33... g5 {[%clk 0:00:42.2]} 34. Nf2 {[%clk 0:00:46.8]} 34...
Re7 {[%clk 0:00:36.5]} 35. Re1 {[%clk 0:00:43.7]} 35... Kg7 {[%clk 0:00:25.4]}
36. Nd3 {[%clk 0:00:42.5]} 36... Qg3 {[%clk 0:00:24.2]} 37. Nf2 {[%clk
0:00:35.9]} 37... Qd6 {[%clk 0:00:23.5]} 38. Qd3 {[%clk 0:00:32]} 38... Qe5
{[%clk 0:00:21.3]} 39. Rd1 {[%clk 0:00:28.5]} 39... h5 {[%clk 0:00:20.1]} 40.
Qd4 {[%clk 0:00:23.9]} 40... Qxe3 {[%clk 0:00:19.6]} 41. Qxe3 {[%clk 0:00:22]}
41... Rxe3 {[%clk 0:00:20.1]} 42. Nd3 {[%clk 0:00:21.6]} 42... g4 {[%clk
0:00:16.8]} 43. Kf2 {[%clk 0:00:21.6]} 43... d4 {[%clk 0:00:15.1]} 44. Re1
{[%clk 0:00:22]} 44... Nd5 {[%clk 0:00:11.2]} 45. Ba2 {[%clk 0:00:17.4]} 45...
Rxd3 {[%clk 0:00:05.6]} 46. Bxd5 {[%clk 0:00:16.7]} 46... Rxa3 {[%clk
0:00:02.6]} 47. fxg4 {[%clk 0:00:17.1]} 47... hxg4 {[%clk 0:00:02.3]} 48. Re4
{[%clk 0:00:17.3]} 48... g3+ {[%clk 0:00:02.8]} 49. Ke2 {[%clk 0:00:15.5]} 49...
d3+ {[%clk 0:00:02.6]} 50. Kd2 {[%clk 0:00:14.9]} 50... a5 {[%clk 0:00:01.9]}
51. bxa5 {[%clk 0:00:14.3]} 51... Rxa5 {[%clk 0:00:02.8]} 52. Rg4+ {[%clk
0:00:14.4]} 52... Kf6 {[%clk 0:00:03.3]} 53. Rxg3 {[%clk 0:00:15.3]} 53... Ke5
{[%clk 0:00:03.9]} 54. Bxf7 {[%clk 0:00:14.6]} 54... b4 {[%clk 0:00:04.1]} 55.
Rxd3 {[%clk 0:00:14.5]} 55... Ra7 {[%clk 0:00:04]} 56. Bb3 {[%clk 0:00:14.1]}
56... Rg7 {[%clk 0:00:03.7]} 57. g3 {[%clk 0:00:12]} 57... Ke4 {[%clk
0:00:04.2]} 58. Ke2 {[%clk 0:00:10.2]} 58... Ke5 {[%clk 0:00:03.9]} 59. Kf3
{[%clk 0:00:09.7]} 59... Rg6 {[%clk 0:00:03.6]} 60. Rd5+ {[%clk 0:00:09.5]}
60... Ke6 {[%clk 0:00:02.2]} 61. Rg5+ {[%clk 0:00:09.3]} 61... Kf6 {[%clk
0:00:03.1]} 62. Rxg6+ {[%clk 0:00:10.1]} 62... Kxg6 {[%clk 0:00:04]} 63. Kg4
{[%clk 0:00:10.6]} 63... Kf6 {[%clk 0:00:04.3]} 64. Kh5 {[%clk 0:00:10.9]} 64...
Kg7 {[%clk 0:00:04.6]} 65. Kg5 {[%clk 0:00:11]} 65... Kh7 {[%clk 0:00:05.5]} 66.
Kf6 {[%clk 0:00:10.2]} 66... Kh8 {[%clk 0:00:05.3]} 67. Kg5 {[%clk 0:00:10.4]}
67... Kh7 {[%clk 0:00:06.2]} 68. Bc2+ {[%clk 0:00:09.7]} 68... Kg7 {[%clk
0:00:07.1]} 69. g4 {[%clk 0:00:09.6]} 69... Kf7 {[%clk 0:00:07.4]} 70. Kh6
{[%clk 0:00:09.8]} 70... Kg8 {[%clk 0:00:05.8]} 71. g5 {[%clk 0:00:09.6]} 71...
Kh8 {[%clk 0:00:06.7]} 72. g6 {[%clk 0:00:07.7]} 72... b3 {[%clk 0:00:02.9]} 73.
g7+ {[%clk 0:00:07.8]} 1-0

[Event "*** Titled Tuesday Blitz"]
[Site "Chess.com"]
[Date "2021.03.02"]
[Round "1"]
[White "Dedic8"]
[Black "Lysiak_Poltorak"]
[Result "0-1"]
[WhiteElo "2822"]
[BlackElo "2443"]
[TimeControl "180+1"]
[EndTime "10:09:11 PST"]
[Termination "Lysiak_Poltorak won on time"]

1. e4 {[%clk 0:02:59.7]} 1... c6 {[%clk 0:02:59]} 2. d4 {[%clk 0:02:58]} 2... d5
{[%clk 0:02:58.4]} 3. Nc3 {[%clk 0:02:58.9]} 3... dxe4 {[%clk 0:02:58.3]} 4.
Nxe4 {[%clk 0:02:59.8]} 4... Bf5 {[%clk 0:02:58.2]} 5. Ng3 {[%clk 0:02:59.7]}
5... Bg6 {[%clk 0:02:58.6]} 6. h4 {[%clk 0:03:00.4]} 6... h6 {[%clk 0:02:58.5]}
7. Nf3 {[%clk 0:02:58.4]} 7... Nd7 {[%clk 0:02:58.2]} 8. h5 {[%clk 0:02:58.6]}
8... Bh7 {[%clk 0:02:58.5]} 9. Bd3 {[%clk 0:02:59]} 9... Bxd3 {[%clk 0:02:56]}
10. Qxd3 {[%clk 0:02:59.9]} 10... e6 {[%clk 0:02:55.5]} 11. Bd2 {[%clk
0:02:59.6]} 11... Ngf6 {[%clk 0:02:54]} 12. O-O-O {[%clk 0:02:59.6]} 12... Be7
{[%clk 0:02:53.6]} 13. Ne4 {[%clk 0:02:59.7]} 13... Nxe4 {[%clk 0:02:53.4]} 14.
Qxe4 {[%clk 0:03:00.6]} 14... Nf6 {[%clk 0:02:53.7]} 15. Qe2 {[%clk 0:03:00.5]}
15... Qd5 {[%clk 0:02:53]} 16. c4 {[%clk 0:03:00.6]} 16... Qe4 {[%clk
0:02:52.8]} 17. Qxe4 {[%clk 0:03:00.7]} 17... Nxe4 {[%clk 0:02:53.7]} 18. Be3
{[%clk 0:02:58.2]} 18... f5 {[%clk 0:02:53.7]} 19. Rhe1 {[%clk 0:02:54]} 19...
Bf6 {[%clk 0:02:36.8]} 20. Re2 {[%clk 0:02:31.8]} 20... Rd8 {[%clk 0:02:32]} 21.
Bf4 {[%clk 0:02:30.3]} 21... Kf7 {[%clk 0:02:28.1]} 22. Kc2 {[%clk 0:02:29.4]}
22... Rd7 {[%clk 0:02:26.2]} 23. Ne5+ {[%clk 0:02:14.3]} 23... Bxe5 {[%clk
0:02:24.9]} 24. Bxe5 {[%clk 0:02:15.2]} 24... Rhd8 {[%clk 0:02:24.2]} 25. f3
{[%clk 0:02:11.2]} 25... Nf6 {[%clk 0:02:23.2]} 26. Rh1 {[%clk 0:02:11.7]} 26...
a5 {[%clk 0:02:10.3]} 27. Kc3 {[%clk 0:02:00.6]} 27... b6 {[%clk 0:02:08.2]} 28.
b3 {[%clk 0:01:59]} 28... c5 {[%clk 0:02:03.3]} 29. dxc5 {[%clk 0:01:58.4]}
29... bxc5 {[%clk 0:02:03.5]} 30. Bf4 {[%clk 0:01:37.7]} 30... Rd4 {[%clk
0:01:41.9]} 31. Be3 {[%clk 0:01:34.1]} 31... Rd3+ {[%clk 0:01:10.8]} 32. Kc2
{[%clk 0:01:34.4]} 32... e5 {[%clk 0:01:11.2]} 33. Bxc5 {[%clk 0:01:28.3]} 33...
e4 {[%clk 0:01:11]} 34. Bb6 {[%clk 0:01:15.8]} 34... Rb8 {[%clk 0:00:48.6]} 35.
fxe4 {[%clk 0:01:13.2]} 35... fxe4 {[%clk 0:00:47.4]} 36. Bxa5 {[%clk
0:01:12.8]} 36... Ra8 {[%clk 0:00:44.1]} 37. b4 {[%clk 0:01:05.2]} 37... Re8
{[%clk 0:00:33.4]} 38. Rf1 {[%clk 0:00:46.2]} 38... Rd4 {[%clk 0:00:29]} 39. Kb3
{[%clk 0:00:43.9]} 39... e3 {[%clk 0:00:25.7]} 40. Rf3 {[%clk 0:00:43.5]} 40...
Rde4 {[%clk 0:00:16.7]} 41. Bb6 {[%clk 0:00:41.2]} 41... R8e6 {[%clk 0:00:12]}
42. Rexe3 {[%clk 0:00:39.1]} 42... Rxe3+ {[%clk 0:00:05.6]} 43. Bxe3 {[%clk
0:00:40]} 43... Rd6 {[%clk 0:00:05.1]} 44. Bc5 {[%clk 0:00:37.2]} 44... Rd1
{[%clk 0:00:05]} 45. b5 {[%clk 0:00:35]} 45... Ke6 {[%clk 0:00:05.3]} 46. a4
{[%clk 0:00:31.3]} 46... Ne4 {[%clk 0:00:05.8]} 47. Bb4 {[%clk 0:00:28.9]} 47...
Rb1+ {[%clk 0:00:06]} 48. Ka3 {[%clk 0:00:28.6]} 48... Ke5 {[%clk 0:00:06.4]}
49. Rd3 {[%clk 0:00:26.2]} 49... Nf2 {[%clk 0:00:05.9]} 50. Rd5+ {[%clk
0:00:25.5]} 50... Ke4 {[%clk 0:00:05.6]} 51. b6 {[%clk 0:00:25.9]} 51... Nd3
{[%clk 0:00:06]} 52. Rxd3 {[%clk 0:00:26.3]} 52... Kxd3 {[%clk 0:00:06.9]} 53.
b7 {[%clk 0:00:23]} 53... Kc2 {[%clk 0:00:06.5]} 54. Bc5 {[%clk 0:00:09]} 54...
Kc3 {[%clk 0:00:05.1]} 55. Ka2 {[%clk 0:00:03.3]} 55... Rb2+ {[%clk 0:00:05.2]}
56. Ka3 {[%clk 0:00:02.9]} 56... Rxb7 {[%clk 0:00:06.1]} 57. Bf8 {[%clk
0:00:03.1]} 57... Kxc4 {[%clk 0:00:05.8]} 58. a5 {[%clk 0:00:03.7]} 58... Kb5
{[%clk 0:00:05.8]} 59. Bb4 {[%clk 0:00:03.8]} 59... Rd7 {[%clk 0:00:05.2]} 60.
Bc3 {[%clk 0:00:03.1]} 60... Rd3 {[%clk 0:00:05.5]} 61. Kb2 {[%clk 0:00:03.5]}
61... Rg3 {[%clk 0:00:06.1]} 62. Kb3 {[%clk 0:00:03.2]} 62... Rxg2 {[%clk
0:00:06.5]} 63. a6 {[%clk 0:00:03]} 63... Kxa6 {[%clk 0:00:06.4]} 64. Kc4 {[%clk
0:00:03.6]} 64... Rg5 {[%clk 0:00:06.8]} 65. Bd4 {[%clk 0:00:03.1]} 65... Rxh5
{[%clk 0:00:07.1]} 66. Bxg7 {[%clk 0:00:02.1]} 66... Rh3 {[%clk 0:00:07.6]} 67.
Kd5 {[%clk 0:00:02.4]} 67... h5 {[%clk 0:00:08.2]} 68. Ke4 {[%clk 0:00:03]}
68... Kb5 {[%clk 0:00:09.1]} 69. Kf4 {[%clk 0:00:03.4]} 69... Kc4 {[%clk
0:00:09.6]} 70. Bf6 {[%clk 0:00:03.7]} 70... Kd3 {[%clk 0:00:10.1]} 71. Kg5
{[%clk 0:00:03.5]} 71... Rh1 {[%clk 0:00:06.2]} 72. Be5 {[%clk 0:00:03.7]} 72...
Ke4 {[%clk 0:00:05.2]} 73. Bc7 {[%clk 0:00:04]} 73... h4 {[%clk 0:00:04.8]} 74.
Kg4 {[%clk 0:00:04.5]} 74... h3 {[%clk 0:00:05]} 75. Bg3 {[%clk 0:00:04.1]}
75... Ke3 {[%clk 0:00:03.8]} 76. Bc7 {[%clk 0:00:01.7]} 76... h2 {[%clk
0:00:04]} 0-1

[Event "*** Titled Tuesday Blitz"]
[Site "Chess.com"]
[Date "2021.03.02"]
[Round "1"]
[White "mbojan"]
[Black "Bongcloudtransvestit"]
[Result "1-0"]
[WhiteElo "2626"]
[BlackElo "2315"]
[TimeControl "180+1"]
[EndTime "10:09:12 PST"]
[Termination "mbojan won by checkmate"]

1. e4 {[%clk 0:02:56.1]} 1... c5 {[%clk 0:02:57.7]} 2. Ke2 {[%clk 0:02:56.2]}
2... e6 {[%clk 0:02:55]} 3. d3 {[%clk 0:02:55.3]} 3... a6 {[%clk 0:02:53.4]} 4.
c3 {[%clk 0:02:53.1]} 4... d6 {[%clk 0:02:52.4]} 5. Nf3 {[%clk 0:02:50.3]} 5...
b5 {[%clk 0:02:52.3]} 6. g3 {[%clk 0:02:45.8]} 6... Bb7 {[%clk 0:02:52.3]} 7.
Nbd2 {[%clk 0:02:43.7]} 7... Nd7 {[%clk 0:02:52.7]} 8. Bg2 {[%clk 0:02:43.4]}
8... g6 {[%clk 0:02:51.8]} 9. Re1 {[%clk 0:02:43.3]} 9... Bg7 {[%clk 0:02:52.2]}
10. Kf1 {[%clk 0:02:42.5]} 10... Ne7 {[%clk 0:02:52.6]} 11. Kg1 {[%clk
0:02:37.8]} 11... O-O {[%clk 0:02:52.4]} 12. h4 {[%clk 0:02:37.5]} 12... h6
{[%clk 0:02:46.7]} 13. Nf1 {[%clk 0:02:35.1]} 13... Qc7 {[%clk 0:02:45.1]} 14.
N1h2 {[%clk 0:02:33.9]} 14... Kh7 {[%clk 0:02:38.5]} 15. Ng4 {[%clk 0:02:26.9]}
15... Ne5 {[%clk 0:02:37.2]} 16. Nfxe5 {[%clk 0:02:19.2]} 16... dxe5 {[%clk
0:02:38.1]} 17. h5 {[%clk 0:02:19.2]} 17... g5 {[%clk 0:02:33]} 18. Qe2 {[%clk
0:01:56.3]} 18... Rad8 {[%clk 0:02:31.1]} 19. b3 {[%clk 0:01:45.6]} 19... Nc6
{[%clk 0:02:16.1]} 20. Bb2 {[%clk 0:01:29.9]} 20... b4 {[%clk 0:01:46.6]} 21.
Rac1 {[%clk 0:01:28.2]} 21... Qa5 {[%clk 0:01:30.6]} 22. Ba1 {[%clk 0:01:28]}
22... Qb5 {[%clk 0:01:24.8]} 23. Red1 {[%clk 0:00:59.1]} 23... Rd7 {[%clk
0:01:18.6]} 24. Qf3 {[%clk 0:00:45.8]} 24... f5 {[%clk 0:01:10]} 25. Ne3 {[%clk
0:00:40.4]} 25... f4 {[%clk 0:01:03.3]} 26. Nc4 {[%clk 0:00:32.9]} 26... bxc3
{[%clk 0:00:59.4]} 27. Bxc3 {[%clk 0:00:31.7]} 27... Nd4 {[%clk 0:00:59.6]} 28.
Bxd4 {[%clk 0:00:30.8]} 28... cxd4 {[%clk 0:00:49.8]} 29. Qe2 {[%clk 0:00:23.4]}
29... Qb4 {[%clk 0:00:39.8]} 30. Bh3 {[%clk 0:00:21]} 30... Qe7 {[%clk
0:00:35.8]} 31. Bg4 {[%clk 0:00:21]} 31... Qf7 {[%clk 0:00:29.2]} 32. Rf1 {[%clk
0:00:20.2]} 32... Qe7 {[%clk 0:00:20.1]} 33. Na5 {[%clk 0:00:19.6]} 33... Ba8
{[%clk 0:00:19.6]} 34. Rc2 {[%clk 0:00:15.1]} 34... Qa3 {[%clk 0:00:15.2]} 35.
Bxe6 {[%clk 0:00:12.9]} 35... Re7 {[%clk 0:00:11.3]} 36. Nc4 {[%clk 0:00:09.8]}
36... Qb4 {[%clk 0:00:08.5]} 37. Bg4 {[%clk 0:00:08.7]} 37... Qb8 {[%clk
0:00:07.6]} 38. Bf5+ {[%clk 0:00:05.7]} 38... Kh8 {[%clk 0:00:07.1]} 39. g4
{[%clk 0:00:05.8]} 39... Qa7 {[%clk 0:00:05.1]} 40. f3 {[%clk 0:00:05.6]} 40...
a5 {[%clk 0:00:05.1]} 41. a4 {[%clk 0:00:04.5]} 41... Rb8 {[%clk 0:00:03.2]} 42.
Rb1 {[%clk 0:00:04.6]} 42... Rb4 {[%clk 0:00:03.5]} 43. Na3 {[%clk 0:00:03.4]}
43... Bb7 {[%clk 0:00:01.9]} 44. Nb5 {[%clk 0:00:03.6]} 44... Qb6 {[%clk
0:00:01.2]} 45. Qd2 {[%clk 0:00:03.7]} 45... Ba6 {[%clk 0:00:01.4]} 46. Rc4
{[%clk 0:00:02.4]} 46... Bxb5 {[%clk 0:00:01.4]} 47. Rxb4 {[%clk 0:00:02.5]}
47... axb4 {[%clk 0:00:02]} 48. Qxb4 {[%clk 0:00:03.3]} 48... Rb7 {[%clk
0:00:01.9]} 49. Qxb5 {[%clk 0:00:03.1]} 49... Qxb5 {[%clk 0:00:02.8]} 50. axb5
{[%clk 0:00:03.9]} 50... Rxb5 {[%clk 0:00:03.7]} 51. Be6 {[%clk 0:00:04.3]}
51... Bf8 {[%clk 0:00:03.2]} 52. Bc4 {[%clk 0:00:04.8]} 52... Rb4 {[%clk
0:00:02.1]} 53. Ra1 {[%clk 0:00:04.9]} 53... Bc5 {[%clk 0:00:02.2]} 54. Ra5
{[%clk 0:00:04.7]} 54... Bd6 {[%clk 0:00:01.4]} 55. Ra6 {[%clk 0:00:05]} 55...
Bc7 {[%clk 0:00:01.9]} 56. Rxh6+ {[%clk 0:00:04.9]} 56... Kg7 {[%clk 0:00:02.5]}
57. Rg6+ {[%clk 0:00:05.5]} 57... Kh7 {[%clk 0:00:02.5]} 58. Rxg5 {[%clk
0:00:06.3]} 58... Rb6 {[%clk 0:00:02]} 59. Rg6 {[%clk 0:00:06]} 59... Rb7 {[%clk
0:00:02]} 60. Rc6 {[%clk 0:00:05.2]} 60... Ra7 {[%clk 0:00:01.9]} 61. b4 {[%clk
0:00:04.7]} 61... Ra1+ {[%clk 0:00:02.8]} 62. Kg2 {[%clk 0:00:04.1]} 62... Ra2+
{[%clk 0:00:03.7]} 63. Kf1 {[%clk 0:00:04.5]} 63... Ra1+ {[%clk 0:00:04.6]} 64.
Ke2 {[%clk 0:00:05.1]} 64... Kg7 {[%clk 0:00:03.4]} 65. Rxc7+ {[%clk 0:00:05.3]}
65... Kf6 {[%clk 0:00:04]} 66. h6 {[%clk 0:00:05.6]} 66... Rb1 {[%clk
0:00:04.6]} 67. h7 {[%clk 0:00:05.6]} 67... Rb2+ {[%clk 0:00:04.7]} 68. Kd1
{[%clk 0:00:05.7]} 68... Rb1+ {[%clk 0:00:05.1]} 69. Kc2 {[%clk 0:00:05.8]}
69... Rh1 {[%clk 0:00:06]} 70. b5 {[%clk 0:00:06.3]} 70... Rh2+ {[%clk
0:00:05.5]} 71. Kb3 {[%clk 0:00:06.9]} 71... Rh1 {[%clk 0:00:06.4]} 72. Kb4
{[%clk 0:00:07]} 72... Rb1+ {[%clk 0:00:06.8]} 73. Kc5 {[%clk 0:00:07.6]} 73...
Ra1 {[%clk 0:00:07.5]} 74. h8=Q+ {[%clk 0:00:07.3]} 74... Kg5 {[%clk 0:00:06.1]}
75. Qg7+ {[%clk 0:00:08.2]} 75... Kh4 {[%clk 0:00:06.3]} 76. Qxe5 {[%clk
0:00:07.6]} 76... Kg3 {[%clk 0:00:06.7]} 77. Qxd4 {[%clk 0:00:07.8]} 77... Ra6
{[%clk 0:00:06.3]} 78. bxa6 {[%clk 0:00:07.4]} 78... Kg2 {[%clk 0:00:06.8]} 79.
a7 {[%clk 0:00:07.7]} 79... Kg3 {[%clk 0:00:07.1]} 80. a8=Q {[%clk 0:00:07.8]}
80... Kg2 {[%clk 0:00:08]} 81. Qa2+ {[%clk 0:00:07.6]} 81... Kg3 {[%clk
0:00:08.9]} 82. Qdf2+ {[%clk 0:00:07.4]} 82... Kh3 {[%clk 0:00:08.7]} 83. Rh7#
{[%clk 0:00:08.3]} 1-0